bitfinex-derivatives/quotes_SOLF0:USTF0_20251129
["timestamp","ask_amount","ask_price","bid_price","bid_amount"]
[1764412274340,6.9675,137.02,136.99,3.13021486]
[1764412277050,6.968,137.01,136.99,3.13021486]
[1764412277745,6.568,137.01,136.99,3.13021486]
[1764412278650,6.568,137.01,136.99,5.02024658]
[1764412279346,0.41,137.0,136.99,1.94024658]
[1764412279845,0.41,137.0,136.99,0.05021486]
[1764412281351,6.568,137.01,136.99,3.33021486]
[1764412281849,0.41,137.0,136.99,0.05021486]
[1764412288254,6.568,137.01,136.99,3.33021486]
[1764412289059,6.978,137.01,136.99,3.33021486]
[1764412289353,6.568,137.01,137.0,5.17003172]
[1764412290555,6.978,137.01,136.99,0.05021486]
[1764412290759,6.978,137.01,137.0,1.89003172]
[1764412292956,6.978,137.01,137.0,5.16003172]
[1764412293745,6.978,137.01,137.0,1.89003172]
[1764412296659,0.41,137.0,136.99,1.94024658]
[1764412297444,0.41,137.0,136.99,0.05021486]
[1764412312079,0.41,137.02,136.99,3.32021486]
[1764412312266,0.41,137.04,137.01,3.27]
[1764412313267,0.41,137.03,137.01,3.27]
[1764412313973,0.41,137.02,137.0,5.16003172]
[1764412315380,6.9776,137.02,137.0,5.16003172]
[1764412315876,6.5676,137.02,137.0,5.16003172]
[1764412316075,6.9776,137.02,137.0,5.16003172]
[1764412316476,6.9776,137.02,137.0,3.27]
[1764412317581,6.9783,137.0,136.99,0.05021486]
[1764412317971,0.41,137.0,136.99,0.05021486]
[1764412318179,0.41,137.04,136.99,3.32021486]
[1764412318882,0.41,137.02,136.99,3.32021486]
[1764412319882,0.41,137.04,137.0,1.89003172]
[1764412320082,0.41,137.04,137.0,5.16003172]
[1764412320281,0.41,137.04,137.0,3.27]
[1764412320683,0.41,137.04,137.0,5.16003172]
[1764412320880,0.41,137.03,137.0,5.16003172]
[1764412321893,6.977,137.03,137.0,5.16003172]
[1764412322080,0.41,137.02,137.0,5.16003172]
[1764412322275,0.41,137.02,137.0,3.27]
[1764412322675,0.41,137.01,136.99,0.05021486]
[1764412323290,0.41,137.0,136.99,0.05021486]
[1764412328900,0.41,136.97,136.94,2.99]
[1764412329997,7.03021486,136.97,136.94,3.03660574]
[1764412334402,6.9803,136.96,136.94,3.03660574]
[1764412338206,6.5703,136.96,136.94,3.03660574]
[1764412338406,0.05021486,136.97,136.95,3.13]
[1764412338902,0.05021486,136.97,136.96,5.02003172]
[1764412340607,0.05021486,136.97,136.96,3.13]
[1764412345013,0.46021486,136.97,136.94,3.17660574]
[1764412346408,6.5704,136.96,136.94,3.17660574]
[1764412356611,0.41,137.05,136.96,3.22]
[1764412356919,0.41,137.04,136.96,3.22]
[1764412357211,6.977,137.03,136.96,3.22]
[1764412357407,0.41,137.02,136.99,3.22]
[1764412357608,0.41,137.01,136.98,0.04859577]
[1764412358007,0.41,137.01,136.98,3.26859577]
[1764412364817,6.978,137.01,136.98,3.26859577]
[1764412366318,0.41,137.0,136.98,3.26859577]
[1764412366517,0.41,137.0,136.98,0.04859577]
[1764412367819,6.9784,137.0,136.98,0.04859577]
[1764412368117,6.9784,137.0,136.98,3.26859577]
[1764412371620,0.41,136.99,136.98,0.04859577]
[1764412380821,0.41,136.96,136.93,3.22]
[1764412381728,0.45859577,136.96,136.93,3.27192592]
[1764412382233,0.45859577,136.96,136.93,0.05192592]
[1764412382426,6.9811,136.95,136.93,3.14192592]
[1764412383025,0.41,136.94,136.93,0.05192592]
[1764412386924,6.9811,136.95,136.93,3.14192592]
[1764412388425,6.5711,136.95,136.93,3.14192592]
[1764412393026,6.9811,136.95,136.93,3.14192592]
[1764412403238,6.5711,136.95,136.93,3.14192592]
[1764412403539,0.04859577,136.96,136.93,3.14192592]
[1764412404526,0.41,136.95,136.93,3.14192592]
[1764412405139,0.41,136.94,136.93,0.05192592]
[1764412412746,0.41,136.92,136.87,9.86924865]
[1764412412945,0.41,136.92,136.88,3.07]
[1764412413448,0.41,136.91,136.88,3.07]
[1764412413650,0.41,136.93,136.89,3.07]
[1764412413850,0.0481586,136.91,136.89,3.07]
[1764412415357,0.0481586,136.91,136.9,4.96212826]
[1764412423167,0.41,136.9,136.89,1.89212826]
[1764412423365,7.0312586,136.91,136.89,4.96212826]
[1764412424265,6.6212586,136.91,136.9,3.07]
[1764412428182,0.0481586,136.91,136.9,3.07]
[1764412429272,6.9818,136.93,136.9,3.07]
[1764412429273,6.5718,136.93,136.9,3.07]
[1764412429479,6.5718,136.93,136.92,4.96212826]
[1764412436086,0.04965709,136.94,136.93,3.07]
[1764412439490,0.45965709,136.94,136.93,3.07]
[1764412444492,0.04965709,136.94,136.93,3.07]
[1764412445994,0.45965709,136.94,136.93,3.07]
[1764412447593,0.04965709,136.94,136.93,3.07]
[1764412448689,0.45965709,136.94,136.93,3.07]
[1764412449198,0.04965709,136.94,136.93,3.07]
[1764412467109,0.45965709,136.94,136.93,3.07]
[1764412467310,6.9817,136.93,136.92,3.04]
[1764412468209,6.9817,136.93,136.91,3.08682808]
[1764412470013,0.41,136.92,136.91,3.08682808]
[1764412470204,0.41,136.92,136.91,0.04682808]
[1764412471118,0.41,136.92,136.91,3.08682808]
[1764412471315,6.9817,136.93,136.91,3.08682808]
[1764412471715,0.41,136.92,136.91,3.08682808]
[1764412474320,0.41,136.92,136.91,0.04682808]
[1764412477214,6.9717,136.93,136.91,3.20682808]
[1764412478021,0.4,136.92,136.91,3.20682808]
[1764412481322,6.9717,136.93,136.91,3.20682808]
[1764412483119,0.4,136.92,136.91,3.20682808]
[1764412487921,0.4,136.92,136.91,0.04682808]
[1764412488121,0.4,136.92,136.91,3.20682808]
[1764412490124,0.4,136.92,136.91,0.04682808]
[1764412515956,31.9217,136.93,136.91,3.15682808]
[1764412516258,0.41,136.92,136.91,3.15682808]
[1764412517060,0.41,136.92,136.91,0.04682808]
[1764412518058,6.5717,136.93,136.92,3.11]
[1764412518262,0.04965709,136.94,136.92,3.11]
[1764412518458,0.04965709,136.94,136.91,9.80194319]
[1764412518459,0.04965709,136.94,136.93,6.06586646]
[1764412522561,0.04965709,136.94,136.93,5.00139507]
[1764412522765,0.45965709,136.94,136.93,5.00139507]
[1764412523065,0.04965709,136.94,136.93,5.00139507]
[1764412531670,0.04965709,136.94,136.93,3.11]
[1764412531872,0.04965709,136.94,136.93,5.00139507]
[1764412537374,0.04965709,136.94,136.93,3.11]
[1764412537573,0.04965709,136.94,136.93,5.00139507]
[1764412542979,6.57,136.97,136.94,3.13]
[1764412543179,6.57,136.97,136.96,3.13]
[1764412546980,7.02,136.97,136.96,3.13]
[1764412551188,7.02,136.97,136.96,5.02139507]
[1764412551487,6.57,136.97,136.96,5.02139507]
[1764412552686,7.02,136.97,136.96,5.02139507]
[1764412558592,7.02,136.97,136.95,5.06829873]
[1764412559693,7.02,136.97,136.96,3.13]
[1764412560893,0.45,136.96,136.95,0.04690366]
[1764412569506,0.45,136.94,136.92,1.89139507]
[1764412569901,0.45,136.94,136.92,5.01139507]
[1764412570405,6.5717,136.93,136.92,5.01139507]
[1764412570601,6.5717,136.93,136.92,5.06276549]
[1764412571609,7.0217,136.93,136.92,5.06276549]
[1764412575301,6.5717,136.93,136.92,5.06276549]
[1764412577415,7.0317,136.93,136.92,5.06276549]
[1764412584608,7.0317,136.93,136.92,6.12757788]
[1764412584911,6.5717,136.93,136.92,6.12757788]
[1764412591123,0.04960966,136.94,136.93,3.26]
[1764412592921,0.46,136.97,136.93,3.26]
[1764412593115,0.46,136.97,136.95,6.02620746]
[1764412593316,6.5703,136.96,136.95,6.02620746]
[1764412599831,6.5694,136.98,136.96,3.07]
[1764412600132,6.5694,136.98,136.97,6.02620746]
[1764412604033,7.0294,136.98,136.97,6.02620746]
[1764412605135,6.5694,136.98,136.97,6.02620746]
[1764412608232,7.0294,136.98,136.97,6.02620746]
[1764412612827,6.5694,136.98,136.97,6.02620746]
[1764412614237,0.46,137.0,136.98,3.07]
[1764412614941,1.73074547,137.01,136.98,3.07]
[1764412615336,6.5685,137.0,136.99,6.02620746]
[1764412615942,7.0285,137.0,136.99,6.02620746]
[1764412617541,1.27074547,137.01,136.99,6.02620746]
[1764412617745,1.27074547,137.01,137.0,3.07]
[1764412617934,1.73074547,137.01,137.0,3.07]
[1764412618544,1.27074547,137.01,137.0,3.07]
[1764412620738,6.5677,137.02,137.0,3.07]
[1764412621949,8.29722074,137.04,137.02,3.07]
[1764412623142,0.45,137.03,137.02,3.07]
[1764412631449,8.28722074,137.04,137.02,3.07]
[1764412632549,8.28722074,137.04,137.0,3.22]
[1764412632550,0.45,137.01,137.0,3.22]
[1764412632751,0.45,137.01,136.99,3.27614659]
[1764412632954,0.45,137.01,136.99,0.05614659]
[1764412633355,0.45,137.0,136.99,0.05614659]
[1764412634261,0.45,136.98,136.94,3.22]
[1764412635253,0.05404647,136.97,136.96,3.22]
[1764412635465,6.62424647,136.97,136.96,3.22]
[1764412636557,7.07424647,136.97,136.95,3.27106058]
[1764412637554,6.62424647,136.97,136.95,3.27106058]
[1764412639457,6.62424647,136.97,136.96,3.22]
[1764412644165,7.07424647,136.97,136.96,3.22]
[1764412644361,7.07424647,136.97,136.95,3.00726804]
[1764412644665,7.07424647,136.97,136.95,6.09726804]
[1764412644866,7.07424647,136.97,136.95,3.14106058]
[1764412645761,0.45,136.96,136.95,0.05106058]
[1764412660174,6.62424647,136.97,136.95,3.25106058]
[1764412660373,7.08424647,136.97,136.95,3.25106058]
[1764412660775,6.62424647,136.97,136.95,3.25106058]
[1764412660976,7.08424647,136.97,136.95,3.25106058]
[1764412665288,0.46,136.96,136.95,3.25106058]
[1764412666381,6.62424647,136.97,136.95,3.25106058]
[1764412666589,7.08424647,136.97,136.95,3.25106058]
[1764412678003,6.62424647,136.97,136.95,3.25106058]
[1764412686307,7.08424647,136.97,136.95,3.25106058]
[1764412686908,0.46,136.96,136.95,0.05106058]
[1764412687106,2.35240255,136.96,136.95,0.05106058]
[1764412687411,0.46,136.94,136.91,3.12]
[1764412687608,2.35240255,136.94,136.91,3.12]
[1764412688307,6.5721,136.92,136.91,3.17484047]
[1764412699414,6.62166706,136.94,136.91,3.17484047]
[1764412699623,0.05016706,136.94,136.93,3.12]
[1764412713638,6.5706,136.96,136.93,3.12]
[1764412714732,6.62673889,136.96,136.93,3.12]
[1764412715229,6.5708,136.95,136.93,3.12]
[1764412719935,0.05613889,136.96,136.93,3.12]
[1764412720135,0.05613889,136.96,136.95,3.16]
[1764412725632,0.54613889,136.96,136.94,10.00841396]
[1764412725834,0.54613889,136.96,136.94,3.20641246]
[1764412727543,7.11653889,136.96,136.94,3.20641246]
[1764412739547,0.49,136.95,136.94,0.04641246]
[1764412740260,0.49,136.95,136.94,3.20641246]
[1764412740448,7.11653889,136.96,136.94,3.20641246]
[1764412742462,0.51,136.95,136.94,0.04641246]
[1764412751657,0.51,136.93,136.92,1.396e-05]
[1764412751964,0.51,136.93,136.91,3.25]
[1764412752667,0.55741343,136.93,136.91,3.30318701]
[1764412753364,7.0821,136.92,136.91,3.30318701]
[1764412756871,7.0821,136.92,136.91,0.05318701]
[1764412766890,6.5721,136.92,136.91,3.09318701]
[1764412767386,6.5721,136.92,136.91,4.98607397]
[1764412770296,0.55741343,136.93,136.91,4.98607397]
[1764412770488,0.55741343,136.93,136.91,3.09318701]
[1764412772297,7.12911343,136.93,136.91,3.09318701]
[1764412772696,6.61911343,136.93,136.91,3.09318701]
[1764412773697,0.04741343,136.93,136.91,3.09318701]
[1764412791110,0.55741343,136.93,136.91,3.09318701]
[1764412791609,0.51,136.92,136.91,3.09318701]
[1764412791907,0.51,136.92,136.91,0.05318701]
[1764412793016,2.40288696,136.92,136.91,0.05318701]
[1764412798609,0.51,136.9,136.87,3.05]
[1764412798809,0.51,136.89,136.87,3.05]
[1764412799411,7.0839,136.89,136.87,3.05]
[1764412799608,7.13358318,136.89,136.87,3.09711067]
[1764412815131,0.04968318,136.89,136.87,3.09711067]
[1764412815332,0.04968318,136.89,136.88,3.29]
[1764412824039,0.55968318,136.89,136.88,3.29]
[1764412826341,0.55968318,136.89,136.87,9.92295072]
[1764412826543,0.55968318,136.89,136.88,3.08]
[1764412829638,0.55968318,136.89,136.87,9.92295072]
[1764412829940,0.51,136.88,136.87,6.84295072]
[1764412830136,0.51,136.88,136.87,0.04711067]
[1764412833543,6.62338318,136.89,136.87,3.06711067]
[1764412834045,7.13338318,136.89,136.87,3.06711067]
[1764412836647,0.04968318,136.89,136.87,3.06711067]
[1764412837344,0.04968318,136.89,136.87,9.86295072]
[1764412837649,0.04968318,136.89,136.88,3.02]
[1764412839251,0.04968318,136.89,136.88,9.81584005]
[1764412839850,0.04968318,136.89,136.88,3.02]
[1764412840444,7.0825,136.92,136.89,3.02]
[1764412840639,7.0825,136.92,136.9,3.02]
[1764412841346,7.12996141,136.92,136.9,3.02]
[1764412847858,0.51,136.91,136.89,9.82869268]
[1764412849956,0.51,136.9,136.88,6.80869268]
[1764412850150,0.51,136.9,136.87,3.06711067]
[1764412850351,0.51,136.9,136.87,0.04711067]
[1764412850547,0.51,136.88,136.87,6.85580335]
[1764412853462,0.51,136.88,136.87,9.87580335]
[1764412859367,0.51,136.88,136.87,0.04711067]
[1764412866668,0.51,136.86,136.84,3.29]
[1764412866969,0.51,136.86,136.83,3.29]
[1764412867476,7.0859,136.85,136.83,3.29]
[1764412867673,0.51,136.84,136.83,0.04954918]
[1764412867866,0.51,136.84,136.83,3.33954918]
[1764412868074,0.56489601,136.85,136.83,3.33954918]
[1764412868976,0.56489601,136.85,136.83,0.04954918]
[1764412869175,0.05489601,136.85,136.83,3.33954918]
[1764412869377,0.51,136.9,136.84,3.29]
[1764412869572,0.51,136.9,136.87,3.29]
[1764412870080,7.0837,136.89,136.87,3.29]
[1764412870579,7.13188212,136.89,136.87,3.33829532]
[1764412870877,0.51,136.88,136.87,0.04829532]
[1764412901500,0.51,136.88,136.87,3.26829532]
[1764412901701,0.51,136.88,136.87,0.04829532]
[1764412903301,0.51,136.88,136.87,3.26829532]
[1764412905108,0.51,136.88,136.87,0.04829532]
[1764412910119,0.51,136.88,136.87,3.26829532]
[1764412911223,7.13188212,136.89,136.87,3.26829532]
[1764412911415,0.04818212,136.89,136.87,3.26829532]
[1764412933131,6.62188212,136.89,136.87,3.26829532]
[1764412944346,0.04818212,136.89,136.88,5.17408002]
[1764412950149,0.04818212,136.89,136.88,11.9827727]
[1764412950538,0.04818212,136.89,136.88,10.08869268]
[1764412952352,0.51,136.93,136.89,3.17]
[1764412953050,6.5722,136.92,136.89,3.17]
[1764412953253,7.13296908,136.92,136.89,3.17]
[1764412955862,7.13296908,136.92,136.9,3.09]
[1764412965371,6.62296908,136.92,136.9,3.09]
[1764412966157,6.62296908,136.92,136.91,3.09]
[1764412966558,0.05076908,136.92,136.91,3.09]
[1764412971975,0.56076908,136.92,136.9,0.05057254]
[1764412972782,0.51,136.91,136.9,0.05057254]
[1764412984400,0.51,136.91,136.9,3.20057254]
[1764412984597,7.12306908,136.92,136.9,3.20057254]
[1764412986495,0.5,136.91,136.9,3.20057254]
[1764412989110,0.5,136.91,136.9,0.05057254]
[1764412990898,0.5,136.91,136.9,3.20057254]
[1764412991100,0.5,136.91,136.9,0.05057254]
[1764412993001,7.12306908,136.92,136.9,3.20057254]
[1764412993309,0.05076908,136.92,136.9,3.20057254]
[1764413002107,0.05076908,136.92,136.91,3.15]
[1764413003318,0.05076908,136.92,136.91,6.10760949]
[1764413004319,6.5717,136.93,136.91,6.10760949]
[1764413004320,6.5708,136.95,136.92,3.1]
[1764413004618,7.0808,136.95,136.92,3.1]
[1764413005311,7.0808,136.95,136.92,3.14822424]
[1764413010222,6.5708,136.95,136.92,3.14822424]
[1764413010620,7.0808,136.95,136.92,3.14822424]
[1764413012623,7.0808,136.95,136.94,1.8914163]
[1764413014518,6.5708,136.95,136.94,5.0614163]
[1764413015426,7.0808,136.95,136.94,5.0614163]
[1764413015628,7.0808,136.95,136.92,1.93964054]
[1764413015821,0.51,136.94,136.92,5.10964054]
[1764413016526,0.51,136.94,136.93,3.17]
[1764413017625,7.0808,136.95,136.93,3.17]
[1764413018327,0.51,136.94,136.92,3.21822424]
[1764413019224,6.5708,136.95,136.92,3.21822424]
[1764413019425,6.5708,136.95,136.94,3.17]
[1764413024831,1.78120966,136.97,136.94,3.17]
[1764413024832,8.35130966,136.97,136.94,3.17]
[1764413025536,0.51,136.96,136.94,3.17]
[1764413026330,8.35130966,136.97,136.94,3.17]
[1764413027831,7.0801,136.97,136.94,3.17]
[1764413028127,31.469,136.99,136.96,3.17]
[1764413028333,0.51,136.98,136.96,3.21968454]
[1764413030030,31.469,136.99,136.96,3.21968454]
[1764413030228,31.979,136.99,136.96,3.21968454]
[1764413031535,0.51,136.98,136.96,3.21968454]
[1764413033230,6.569,136.99,136.96,3.21968454]
[1764413033432,7.079,136.99,136.96,3.21968454]
[1764413033931,0.51,136.98,136.96,3.21968454]
[1764413034633,7.079,136.99,136.96,3.21968454]
[1764413035438,0.51,136.98,136.96,3.21968454]
[1764413039739,0.51,136.97,136.96,0.04968454]
[1764413040035,0.51,136.97,136.92,5.0614163]
[1764413040228,0.51,136.97,136.92,3.17]
[1764413041045,0.51,136.95,136.93,3.22537255]
[1764413041437,0.51,136.94,136.93,0.05537255]
[1764413054842,0.51,136.92,136.9,1.8914163]
[1764413055449,7.0826,136.91,136.9,1.8914163]
[1764413060645,7.0826,136.91,136.89,5.10688049]
[1764413062662,6.5717,136.93,136.9,3.16]
[1764413062957,0.51,136.92,136.91,3.16]
[1764413064859,7.13232943,136.93,136.91,3.16]
[1764413066261,0.05062943,136.93,136.92,5.1214163]
[1764413067354,0.56062943,136.93,136.91,1.8914163]
[1764413067661,0.56062943,136.93,136.91,5.1214163]
[1764413068564,0.56062943,136.93,136.92,3.23]
[1764413071365,7.13242943,136.93,136.91,3.23]
[1764413076068,0.51,136.92,136.91,3.23]
[1764413076568,7.13242943,136.93,136.91,3.23]
[1764413080976,0.51,136.92,136.91,3.23]
[1764413081872,7.13242943,136.93,136.91,3.23]
[1764413089288,7.0825,136.92,136.9,9.86480739]
[1764413089483,0.51,136.91,136.9,0.04897607]
[1764413089985,0.51,136.91,136.9,3.05897607]
[1764413098291,7.0825,136.92,136.9,3.05897607]
[1764413099988,0.51,136.91,136.9,0.04897607]
[1764413100481,0.51,136.91,136.9,3.05897607]
[1764413101397,7.0825,136.92,136.9,3.05897607]
[1764413101997,0.51,136.91,136.9,3.05897607]
[1764413102296,6.5725,136.92,136.9,3.05897607]
[1764413102498,7.0825,136.92,136.9,3.05897607]
[1764413106698,6.5725,136.92,136.9,3.05897607]
[1764413108003,7.0825,136.92,136.9,3.05897607]
[1764413116812,0.51,136.92,136.9,6.01567468]
[1764413117714,7.0822,136.92,136.9,6.01567468]
[1764413121819,0.05062943,136.93,136.91,3.01]
[1764413122021,0.05062943,136.93,136.92,5.96669861]
[1764413125811,0.05062943,136.93,136.92,3.01]
[1764413132624,0.05062943,136.93,136.92,4.90179976]
[1764413134823,0.51,136.91,136.9,6.85861879]
[1764413135028,0.51,136.91,136.9,0.04897607]
[1764413137431,6.5725,136.92,136.9,3.17897607]
[1764413137618,6.5725,136.92,136.91,3.13]
[1764413137820,7.0825,136.92,136.91,3.13]
[1764413138426,6.5725,136.92,136.91,3.13]
[1764413148532,7.0825,136.92,136.91,3.13]
[1764413156036,0.05062943,136.93,136.91,5.02179976]
[1764413156235,0.05062943,136.93,136.92,3.13]
[1764413157731,0.51,136.98,136.92,3.13]
[1764413158033,0.51,136.98,136.94,5.02179976]
[1764413158625,0.51,136.98,136.95,0.05155646]
[1764413159452,7.0805,136.96,136.95,0.05155646]
[1764413169538,1.27086148,137.0,136.95,3.17155646]
[1764413169735,1.78086148,137.0,136.98,5.01179976]
[1764413169935,0.51,136.99,136.98,3.12]
[1764413170134,0.51,136.99,136.98,5.01179976]
[1764413170642,8.34956148,137.0,136.98,5.01179976]
[1764413171044,0.51,136.99,136.98,5.01179976]
[1764413172645,8.34956148,137.0,136.98,5.01179976]
[1764413174834,0.51,136.99,136.98,3.12]
[1764413177044,7.0789,136.99,136.97,3.12]
[1764413184560,0.51,136.98,136.97,3.12]
[1764413184745,7.0789,136.99,136.97,3.12]
[1764413192661,0.51,137.02,136.98,3.26]
[1764413192958,0.51,137.02,136.99,0.05602376]
[1764413193159,0.51,137.02,136.99,3.31602376]
[1764413194360,7.078,137.01,136.99,3.31602376]
[1764413197761,0.51,137.0,136.99,3.31602376]
[1764413198262,0.51,137.0,136.99,0.05602376]
[1764413202869,0.51,136.96,136.94,10.05784954]
[1764413203167,0.51,136.96,136.92,6.572]
[1764413203168,0.51,136.96,136.95,3.26]
[1764413206173,7.13016677,136.97,136.95,3.26]
[1764413209559,0.51,136.96,136.95,3.26]
[1764413209870,0.51,136.96,136.94,0.05498571]
[1764413210067,0.51,136.95,136.94,0.05498571]
[1764413210571,0.51,136.95,136.94,3.31498571]
[1764413211372,6.5705,136.96,136.94,3.31498571]
[1764413211579,7.0805,136.96,136.94,3.31498571]
[1764413216681,0.51,136.95,136.94,3.31498571]
[1764413216872,0.51,136.95,136.94,0.05498571]
[1764413217067,0.51,136.95,136.94,3.31498571]
[1764413217275,6.5705,136.96,136.94,3.31498571]
[1764413217276,7.0805,136.96,136.94,3.31498571]
[1764413218781,0.51,136.95,136.94,3.31498571]
[1764413219782,0.51,136.95,136.94,0.05498571]
[1764413221277,0.51,136.93,136.91,3.26]
[1764413221585,0.51,136.93,136.9,3.26]
[1764413222174,0.55798501,136.93,136.9,3.31586262]
[1764413222385,7.0823,136.92,136.9,3.31586262]
[1764413227086,0.51,136.91,136.9,3.31586262]
[1764413227989,7.0823,136.92,136.9,3.31586262]
[1764413234996,7.0823,136.92,136.9,6.26930386]
[1764413235183,7.0823,136.92,136.91,3.2]
[1764413235494,0.04798501,136.93,136.91,3.2]
[1764413235681,0.04798501,136.93,136.92,6.15344124]
[1764413247004,0.55798501,136.93,136.92,3.2]
[1764413247694,0.55798501,136.93,136.9,3.04586262]
[1764413247894,0.51,136.92,136.9,3.04586262]
[1764413250801,7.0822,136.92,136.9,3.04586262]
[1764413252089,0.51,136.91,136.9,3.04586262]
[1764413253293,7.0822,136.92,136.9,3.04586262]
[1764413254505,7.0822,136.92,136.9,4.93841771]
[1764413258104,0.51,136.91,136.9,0.05586262]
[1764413261698,0.04798501,136.93,136.9,3.34586262]
[1764413261899,0.04798501,136.93,136.92,3.29]
[1764413262702,0.55798501,136.93,136.91,8.69040463]
[1764413262906,0.55798501,136.93,136.91,5.18255509]
[1764413264109,0.55798501,136.93,136.91,11.98040463]
[1764413270609,7.12978501,136.93,136.91,11.98040463]
[1764413270908,7.12978501,136.93,136.91,5.18255509]
[1764413271503,7.12978501,136.93,136.91,3.29]
[1764413276911,6.5726,136.91,136.9,10.14371216]
[1764413277810,7.12998501,136.93,136.91,3.29]
[1764413278315,7.12998501,136.93,136.91,5.18255509]
[1764413280214,7.12998501,136.93,136.91,3.29]
[1764413281814,0.51,136.92,136.9,10.14371216]
[1764413282011,7.12998501,136.93,136.91,3.29]
[1764413285813,6.61998501,136.93,136.91,3.29]
[1764413286716,7.11998501,136.93,136.91,3.29]
[1764413298433,0.5,136.92,136.91,3.29]
[1764413300037,7.0726,136.92,136.9,10.11371216]
[1764413300334,0.5,136.91,136.9,10.11371216]
[1764413300523,0.5,136.91,136.9,6.85371216]
[1764413302638,0.5,136.91,136.9,0.05586262]
[1764413303238,7.0731,136.9,136.88,3.26]
[1764413304237,7.0731,136.9,136.88,3.31127125]
[1764413310839,0.51,136.89,136.88,3.31127125]
[1764413311046,0.51,136.89,136.88,0.05127125]
[1764413311638,0.51,136.87,136.84,9.82784954]
[1764413312444,0.51,136.87,136.84,3.03]
[1764413312745,0.55667815,136.87,136.84,3.07684138]
[1764413313439,6.5755,136.85,136.84,3.07684138]
[1764413314147,7.0855,136.85,136.84,0.04684138]
[1764413314542,6.5774,136.81,136.8,3.1]
[1764413315448,7.0868,136.83,136.8,3.1]
[1764413315649,0.51,136.82,136.8,3.14640765]
[1764413317750,7.087,136.82,136.8,3.14640765]
[1764413319242,6.577,136.82,136.8,3.14640765]
[1764413320846,7.087,136.82,136.8,3.14640765]
[1764413322452,0.51,136.81,136.8,3.14640765]
[1764413324150,6.577,136.82,136.8,3.14640765]
[1764413324352,7.087,136.82,136.8,3.14640765]
[1764413332760,7.087,136.82,136.8,0.04640765]
[1764413332761,0.51,136.81,136.8,0.04640765]
[1764413350473,0.46,136.76,136.72,3.22]
[1764413351066,7.0402,136.76,136.72,3.22]
[1764413351460,0.0551703,136.75,136.74,3.22]
[1764413364682,6.5792,136.78,136.74,4.68]
[1764413364879,6.5792,136.78,136.75,3.0]
[1764413365780,6.62869723,136.78,136.75,3.05070123]
[1764413369783,7.14869723,136.78,136.75,3.05070123]
[1764413370385,6.62869723,136.78,136.75,3.05070123]
[1764413370884,7.14869723,136.78,136.75,3.05070123]
[1764413377093,6.62869723,136.78,136.75,3.05070123]
[1764413378498,6.62869723,136.78,136.76,1.89622037]
[1764413378702,6.62869723,136.78,136.77,3.09]
[1764413380101,7.14869723,136.78,136.77,3.09]
[1764413380302,7.14869723,136.78,136.76,4.98622037]
[1764413380500,0.52,136.77,136.76,4.98622037]
[1764413381109,6.62869723,136.78,136.76,4.98622037]
[1764413381300,7.14869723,136.78,136.76,4.98622037]
[1764413381700,7.14869723,136.78,136.77,3.09]
[1764413382903,6.62869723,136.78,136.77,3.09]
[1764413383101,0.04949723,136.78,136.77,3.09]
[1764413386604,0.04949723,136.78,136.77,4.98622037]
[1764413392213,0.04949723,136.78,136.77,3.09]
[1764413413624,6.5777,136.81,136.78,3.17]
[1764413413813,6.5777,136.81,136.8,5.06622037]
[1764413425439,0.05068003,136.82,136.81,3.05]
[1764413427639,6.5767,136.83,136.81,3.05]
[1764413427837,6.5767,136.83,136.8,1.89622037]
[1764413427838,6.5767,136.83,136.82,4.94622037]
[1764413436745,7.0967,136.83,136.82,1.89622037]
[1764413438546,7.0967,136.83,136.81,6.09057448]
[1764413441547,7.0967,136.83,136.82,3.13]